fUST/lending_fUST_20260617
["ID","MTS","AMOUNT","RATE_DAILY","PERIOD"]
[425291302,1781655038000,-500.0,0.00016524,2]
[425291311,1781655038000,-500.0,0.00016524,2]
[425291301,1781655038000,-500.0,0.00016524,2]
[425291307,1781655038000,-500.0,0.00016524,2]
[425291308,1781655038000,-1637.15,0.00016524,2]
[425291312,1781655038000,-502.44127584,0.00016524,2]
[425291318,1781655038000,-500.0,0.00016524,2]
[425291306,1781655038000,-500.0,0.00016524,2]
[425291309,1781655038000,-500.0,0.00016524,2]
[425291319,1781655038000,-500.0,0.00016524,2]
[425291320,1781655038000,-500.0,0.00016524,2]
[425291295,1781655038000,-500.0,0.00016524,2]
[425291294,1781655038000,-500.0,0.00016524,2]
[425291286,1781655038000,-329.33235464,0.00016524,2]
[425291304,1781655038000,-500.0,0.00016524,2]
[425291313,1781655038000,-500.0,0.00016524,2]
[425291275,1781655038000,-503.72439102,0.00016524,2]
[425291274,1781655038000,-500.0,0.00016524,2]
[425291273,1781655038000,-114.09119366,0.00016524,2]
[425291276,1781655038000,-500.0,0.00016524,2]
[425291277,1781655038000,-456.46927032,0.00016524,2]
[425291278,1781655038000,-916.59072968,0.00016524,2]
[425291280,1781655038000,-500.0,0.00016524,2]
[425291281,1781655038000,-1025.92,0.00016524,2]
[425291279,1781655038000,-646.02,0.00016524,2]
[425291287,1781655038000,-500.0,0.00016524,2]
[425291283,1781655038000,-500.0,0.00016524,2]
[425291288,1781655038000,-500.0,0.00016524,2]
[425291285,1781655038000,-500.0,0.00016524,2]
[425291284,1781655038000,-500.0,0.00016524,2]
[425291282,1781655038000,-500.0,0.00016524,2]
[425291292,1781655038000,-500.0,0.00016524,2]
[425291290,1781655038000,-500.0,0.00016524,2]
[425291291,1781655038000,-510.16976014,0.00016524,2]
[425291305,1781655038000,-1138.2,0.00016524,2]
[425291310,1781655038000,-159.76199353,0.00016524,2]
[425291321,1781655038000,-500.0,0.00016524,2]
[425291317,1781655038000,-500.0,0.00016524,2]
[425291344,1781655038000,-500.0,0.00016524,2]
[425291346,1781655038000,-504.54802028,0.00016524,2]
[425291342,1781655038000,-500.0,0.00016524,2]
[425291347,1781655038000,-500.0,0.00016524,2]
[425291345,1781655038000,-500.0,0.00016524,2]
[425291357,1781655038000,-487.0,0.00016525,2]
[425291348,1781655038000,-500.0,0.00016524,2]
[425291361,1781655038000,-487.0,0.00016525,2]
[425291362,1781655038000,-487.0,0.00016525,2]
[425291359,1781655038000,-487.0,0.00016525,2]
[425291349,1781655038000,-500.0,0.00016524,2]
[425291352,1781655038000,-500.0,0.00016525,2]
[425291353,1781655038000,-487.0,0.00016525,2]
[425291356,1781655038000,-487.0,0.00016525,2]
[425291355,1781655038000,-487.0,0.00016525,2]
[425291354,1781655038000,-487.0,0.00016525,2]
[425291351,1781655038000,-510.89239461,0.00016524,2]
[425291363,1781655038000,-487.0,0.00016525,2]
[425291315,1781655038000,-500.0,0.00016524,2]
[425291341,1781655038000,-500.0,0.00016524,2]
[425291339,1781655038000,-500.0,0.00016524,2]
[425291350,1781655038000,-500.0,0.00016524,2]
[425291338,1781655038000,-500.0,0.00016524,2]
[425291314,1781655038000,-500.0,0.00016524,2]
[425291343,1781655038000,-500.0,0.00016524,2]
[425291316,1781655038000,-500.0,0.00016524,2]
[425291322,1781655038000,-500.0,0.00016524,2]
[425291333,1781655038000,-500.0,0.00016524,2]
[425291331,1781655038000,-500.0,0.00016524,2]
[425291330,1781655038000,-500.0,0.00016524,2]
[425291334,1781655038000,-500.0,0.00016524,2]
[425291329,1781655038000,-500.0,0.00016524,2]
[425291328,1781655038000,-500.0,0.00016524,2]
[425291324,1781655038000,-500.0,0.00016524,2]
[425291325,1781655038000,-500.0,0.00016524,2]
[425291323,1781655038000,-500.0,0.00016524,2]
[425291327,1781655038000,-500.0,0.00016524,2]
[425291326,1781655038000,-500.0,0.00016524,2]
[425291335,1781655038000,-500.0,0.00016524,2]
[425291340,1781655038000,-500.0,0.00016524,2]
[425291336,1781655038000,-500.0,0.00016524,2]
[425291332,1781655038000,-500.0,0.00016524,2]
[425291337,1781655038000,-500.0,0.00016524,2]
[425291414,1781655039000,-514.50768188,0.00016624,2]
[425291415,1781655039000,-1669.04,0.00016624,2]
[425291418,1781655039000,-500.0,0.00016624,2]
[425291404,1781655039000,-500.0,0.00016624,2]
[425291398,1781655039000,-500.0,0.00016624,2]
[425291402,1781655039000,-500.0,0.00016624,2]
[425291400,1781655039000,-500.0,0.00016624,2]
[425291399,1781655039000,-500.0,0.00016624,2]
[425291395,1781655039000,-395.33842322,0.00016624,2]
[425291408,1781655039000,-500.0,0.00016624,2]
[425291401,1781655039000,-500.0,0.00016624,2]
[425291393,1781655039000,-503.67067755,0.00016624,2]
[425291403,1781655039000,-500.0,0.00016624,2]
[425291429,1781655039000,-500.0,0.00016624,2]
[425291416,1781655039000,-500.0,0.00016624,2]
[425291406,1781655039000,-500.0,0.00016624,2]
[425291407,1781655039000,-500.0,0.00016624,2]
[425291412,1781655039000,-500.0,0.00016624,2]
[425291410,1781655039000,-9468.19,0.00016624,2]
[425291409,1781655039000,-500.0,0.00016624,2]
[425291420,1781655039000,-500.0,0.00016624,2]
[425291422,1781655039000,-500.0,0.00016624,2]
[425291425,1781655039000,-500.0,0.00016624,2]
[425291427,1781655039000,-500.0,0.00016624,2]
[425291423,1781655039000,-503.7513788,0.00016624,2]
[425291424,1781655039000,-617.4197809,0.00016624,2]
[425291394,1781655039000,-500.0,0.00016624,2]
[425291405,1781655039000,-349.29357617,0.00016624,2]
[425291397,1781655039000,-500.0,0.00016624,2]
[425291373,1781655039000,-487.0,0.00016525,2]
[425291391,1781655039000,-500.0,0.00016624,2]
[425291428,1781655039000,-618.35818357,0.00016624,2]
[425291369,1781655039000,-487.0,0.00016525,2]
[425291375,1781655039000,-487.0,0.00016525,2]
[425291368,1781655039000,-487.0,0.00016525,2]
[425291364,1781655039000,-487.0,0.00016525,2]
[425291374,1781655039000,-487.0,0.00016525,2]
[425291366,1781655039000,-487.0,0.00016525,2]
[425291367,1781655039000,-487.0,0.00016525,2]
[425291365,1781655039000,-487.0,0.00016525,2]
[425291371,1781655039000,-487.0,0.00016525,2]
[425291372,1781655039000,-487.0,0.00016525,2]
[425291370,1781655039000,-487.0,0.00016525,2]
[425291377,1781655039000,-1705.68932809,0.00016623,6]
[425291392,1781655039000,-500.0,0.00016624,2]
[425291388,1781655039000,-1691.52,0.00016624,2]
[425291376,1781655039000,-524.26,0.00016525,2]
[425291378,1781655039000,-222.25034792,0.00016623,2]
[425291379,1781655039000,-347.7408911,0.00016623,2]
[425291380,1781655039000,-503.84940895,0.00016624,2]
[425291389,1781655039000,-500.0,0.00016624,2]
[425291383,1781655039000,-780.72,0.00016624,2]
[425291381,1781655039000,-500.0,0.00016624,2]
[425291382,1781655039000,-1000.0,0.00016624,2]
[425291384,1781655039000,-500.0,0.00016624,2]
[425291385,1781655039000,-430.54158255,0.00016624,2]
[425291386,1781655039000,-500.0,0.00016624,2]
[425291390,1781655039000,-500.0,0.00016624,2]
[425291396,1781655039000,-500.0,0.00016624,2]
[425291387,1781655039000,-500.0,0.00016624,2]
[425291426,1781655039000,-500.0,0.00016624,2]
[425291430,1781655039000,-500.0,0.00016624,2]
[425291442,1781655039000,-500.0,0.00016624,2]
[425291459,1781655039000,-500.0,0.00016624,2]
[425291462,1781655039000,-184.7099,0.00016624,2]
[425291465,1781655039000,-500.0,0.00016624,2]
[425291468,1781655039000,-151.0,0.000167,2]
[425291479,1781655039000,-1079.65,0.00016725,2]
[425291471,1781655039000,-500.0,0.00016723,2]
[425291472,1781655039000,-500.0,0.00016723,2]
[425291478,1781655039000,-1079.65,0.00016725,2]
[425291470,1781655039000,-504.59594946,0.00016723,2]
[425291477,1781655039000,-1079.65,0.00016725,2]
[425291474,1781655039000,-500.0,0.00016723,2]
[425291469,1781655039000,-173.1320638,0.00016708,2]
[425291473,1781655039000,-500.0,0.00016723,2]
[425291464,1781655039000,-500.0,0.00016624,2]
[425291480,1781655039000,-1079.65,0.00016725,2]
[425291476,1781655039000,-500.0,0.00016723,2]
[425291481,1781655039000,-1079.65,0.00016725,2]
[425291484,1781655039000,-1079.65,0.00016725,2]
[425291483,1781655039000,-1079.65,0.00016725,2]
[425291488,1781655039000,-1079.65,0.00016725,2]
[425291486,1781655039000,-1079.65,0.00016725,2]
[425291485,1781655039000,-1079.65,0.00016725,2]
[425291487,1781655039000,-1079.65,0.00016725,2]
[425291493,1781655039000,-1079.65,0.00016725,2]
[425291489,1781655039000,-1079.65,0.00016725,2]
[425291491,1781655039000,-1079.65,0.00016725,2]
[425291490,1781655039000,-1079.65,0.00016725,2]
[425291494,1781655039000,-1079.65,0.00016725,2]
[425291475,1781655039000,-500.0,0.00016723,2]
[425291460,1781655039000,-500.0,0.00016624,2]
[425291432,1781655039000,-393.59635995,0.00016624,2]
[425291463,1781655039000,-500.0,0.00016624,2]
[425291461,1781655039000,-500.0,0.00016624,2]
[425291434,1781655039000,-500.0,0.00016624,2]
[425291482,1781655039000,-1079.65,0.00016725,2]
[425291433,1781655039000,-500.0,0.00016624,2]
[425291435,1781655039000,-500.0,0.00016624,2]
[425291437,1781655039000,-500.0,0.00016624,2]
[425291436,1781655039000,-559.02,0.00016624,2]
[425291439,1781655039000,-500.0,0.00016624,2]
[425291441,1781655039000,-500.0,0.00016624,2]
[425291438,1781655039000,-500.0,0.00016624,2]
[425291440,1781655039000,-500.0,0.00016624,2]
[425291443,1781655039000,-505.76586365,0.00016624,2]
[425291444,1781655039000,-500.0,0.00016624,2]
[425291446,1781655039000,-621.39896161,0.00016624,2]
[425291431,1781655039000,-507.88667059,0.00016624,2]
[425291445,1781655039000,-500.0,0.00016624,2]
[425291454,1781655039000,-500.0,0.00016624,2]
[425291467,1781655039000,-209.99453436,0.0001665,2]
[425291458,1781655039000,-503.01099921,0.00016624,2]
[425291457,1781655039000,-343.19256133,0.00016624,2]
[425291455,1781655039000,-500.0,0.00016624,2]
[425291456,1781655039000,-1516.76,0.00016624,2]
[425291466,1781655039000,-500.0,0.00016624,2]
[425291449,1781655039000,-500.0,0.00016624,2]
[425291452,1781655039000,-500.0,0.00016624,2]
[425291453,1781655039000,-500.0,0.00016624,2]
[425291451,1781655039000,-500.0,0.00016624,2]
[425291447,1781655039000,-500.0,0.00016624,2]
[425291448,1781655039000,-500.0,0.00016624,2]
[425291450,1781655039000,-500.0,0.00016624,2]
[425291536,1781655040000,-500.0,0.00016797,2]
[425291532,1781655040000,-791.7,0.00016797,2]
[425291545,1781655040000,-1898.03,0.00016798,2]
[425291543,1781655040000,-610.84,0.00016798,2]
[425291530,1781655040000,-500.0,0.00016797,2]
[425291533,1781655040000,-500.0,0.00016797,2]
[425291528,1781655040000,-662.07,0.00016797,2]
[425291523,1781655040000,-151.0,0.00016726,2]
[425291524,1781655040000,-153.25009671,0.00016726,2]
[425291535,1781655040000,-500.0,0.00016797,2]
[425291544,1781655040000,-500.0,0.00016798,2]
[425291531,1781655040000,-1556.16,0.00016797,2]
[425291546,1781655040000,-500.0,0.00016798,2]
[425291537,1781655040000,-500.0,0.00016797,2]
[425291541,1781655040000,-500.0,0.00016798,2]
[425291539,1781655040000,-964.92,0.00016797,2]
[425291540,1781655040000,-500.0,0.00016797,2]
[425291542,1781655040000,-500.0,0.00016798,2]
[425291549,1781655040000,-500.0,0.00016798,2]
[425291547,1781655040000,-500.0,0.00016798,2]
[425291554,1781655040000,-646.02,0.00016798,2]
[425291548,1781655040000,-731.28,0.00016798,2]
[425291555,1781655040000,-500.0,0.00016798,2]
[425291553,1781655040000,-1373.06,0.00016798,2]
[425291551,1781655040000,-500.0,0.00016798,2]
[425291526,1781655040000,-500.0,0.00016797,2]
[425291538,1781655040000,-591.11,0.00016797,2]
[425291529,1781655040000,-500.0,0.00016797,2]
[425291518,1781655040000,-151.0,0.00016726,2]
[425291525,1781655040000,-159.76199351,0.00016765,2]
[425291495,1781655040000,-1079.65,0.00016725,2]
[425291496,1781655040000,-1079.65,0.00016725,2]
[425291506,1781655040000,-151.807328,0.00016725,2]
[425291497,1781655040000,-1079.65,0.00016725,2]
[425291499,1781655040000,-1079.65,0.00016725,2]
[425291500,1781655040000,-1079.65,0.00016725,2]
[425291505,1781655040000,-300.4565317,0.00016725,2]
[425291502,1781655040000,-500.0,0.00016725,2]
[425291498,1781655040000,-1079.65,0.00016725,2]
[425291501,1781655040000,-1079.66103297,0.00016725,2]
[425291503,1781655040000,-500.0,0.00016725,2]
[425291504,1781655040000,-500.0,0.00016725,2]
[425291507,1781655040000,-151.0,0.00016725,2]
[425291522,1781655040000,-151.0,0.00016726,2]
[425291509,1781655040000,-151.0,0.00016725,2]
[425291552,1781655040000,-500.0,0.00016798,2]
[425291512,1781655040000,-311.28325,0.00016725,2]
[425291511,1781655040000,-311.28325,0.00016725,2]
[425291510,1781655040000,-311.28325,0.00016725,2]
[425291508,1781655040000,-151.0,0.00016725,2]
[425291514,1781655040000,-151.0,0.00016726,2]
[425291513,1781655040000,-311.28325,0.00016725,2]
[425291515,1781655040000,-181.84029126,0.00016726,2]
[425291516,1781655040000,-151.0,0.00016726,2]
[425291517,1781655040000,-151.0,0.00016726,2]
[425291520,1781655040000,-151.0,0.00016726,2]
[425291521,1781655040000,-151.0,0.00016726,2]
[425291527,1781655040000,-856.72,0.00016797,2]
[425291519,1781655040000,-151.0,0.00016726,2]
[425291556,1781655040000,-1025.92,0.00016798,2]
[425291534,1781655040000,-503.26051967,0.00016797,2]
[425291557,1781655040000,-500.0,0.00016798,2]
[425291591,1781655040000,-311.28325,0.00016798,2]
[425291596,1781655040000,-500.0,0.00016798,2]
[425291593,1781655040000,-504.42483809,0.00016798,2]
[425291589,1781655040000,-311.28325,0.00016798,2]
[425291592,1781655040000,-500.0,0.00016798,2]
[425291590,1781655040000,-500.0,0.00016798,2]
[425291611,1781655040000,-500.0,0.00016898,2]
[425291601,1781655040000,-1000.0,0.00016898,2]
[425291600,1781655040000,-500.0,0.00016898,2]
[425291612,1781655040000,-500.0,0.00016898,2]
[425291604,1781655040000,-500.0,0.00016898,2]
[425291602,1781655040000,-780.72,0.00016898,2]
[425291613,1781655040000,-500.0,0.00016898,2]
[425291603,1781655040000,-500.0,0.00016898,2]
[425291608,1781655040000,-500.0,0.00016898,2]
[425291605,1781655040000,-500.0,0.00016898,2]
[425291609,1781655040000,-500.0,0.00016898,2]
[425291606,1781655040000,-1691.52,0.00016898,2]
[425291610,1781655040000,-500.0,0.00016898,2]
[425291607,1781655040000,-500.0,0.00016898,2]
[425291614,1781655040000,-500.0,0.00016898,2]
[425291619,1781655040000,-500.0,0.00016898,2]
[425291615,1781655040000,-500.0,0.00016898,2]
[425291620,1781655040000,-500.0,0.00016898,2]
[425291617,1781655040000,-500.0,0.00016898,2]
[425291616,1781655040000,-500.0,0.00016898,2]
[425291621,1781655040000,-500.0,0.00016898,2]
[425291618,1781655040000,-260.98294479,0.00016898,2]
[425291558,1781655040000,-565.44721395,0.00016798,2]
[425291599,1781655040000,-1010.0,0.000168,3]
[425291595,1781655040000,-500.0,0.00016798,2]
[425291550,1781655040000,-500.0,0.00016798,2]
[425291597,1781655040000,-500.0,0.00016798,2]
[425291594,1781655040000,-500.0,0.00016798,2]
[425291563,1781655040000,-151.0,0.00016798,2]
[425291559,1781655040000,-500.0,0.00016798,2]
[425291562,1781655040000,-151.0,0.00016798,2]
[425291564,1781655040000,-500.0,0.00016798,2]
[425291561,1781655040000,-500.0,0.00016798,2]
[425291566,1781655040000,-500.0,0.00016798,2]
[425291568,1781655040000,-500.0,0.00016798,2]
[425291570,1781655040000,-500.0,0.00016798,2]
[425291571,1781655040000,-500.0,0.00016798,2]
[425291572,1781655040000,-500.0,0.00016798,2]
[425291574,1781655040000,-663.49,0.00016798,2]
[425291577,1781655040000,-500.0,0.00016798,2]
[425291573,1781655040000,-500.0,0.00016798,2]
[425291560,1781655040000,-500.0,0.00016798,2]
[425291576,1781655040000,-500.0,0.00016798,2]
[425291575,1781655040000,-500.0,0.00016798,2]
[425291598,1781655040000,-500.0,0.00016799,2]
[425291588,1781655040000,-311.28325,0.00016798,2]
[425291587,1781655040000,-311.28325,0.00016798,2]
[425291580,1781655040000,-151.0,0.00016798,2]
[425291582,1781655040000,-500.0,0.00016798,2]
[425291583,1781655040000,-510.50147798,0.00016798,2]
[425291586,1781655040000,-500.0,0.00016798,2]
[425291579,1781655040000,-500.0,0.00016798,2]
[425291578,1781655040000,-647.13,0.00016798,2]
[425291584,1781655040000,-1460.3961313,0.00016798,2]
[425291585,1781655040000,-176.7538687,0.00016798,2]
[425291581,1781655040000,-1138.2,0.00016798,2]
[425291664,1781655041000,-500.0,0.00016898,2]
[425291665,1781655041000,-500.0,0.00016898,2]
[425291663,1781655041000,-1516.76,0.00016898,2]
[425291674,1781655041000,-506.65543786,0.00016997,2]
[425291675,1781655041000,-500.0,0.00016997,2]
[425291661,1781655041000,-500.0,0.00016898,2]
[425291659,1781655041000,-311.28325,0.00016898,2]
[425291658,1781655041000,-311.28325,0.00016898,2]
[425291657,1781655041000,-500.0,0.00016898,2]
[425291662,1781655041000,-500.0,0.00016898,2]
[425291656,1781655041000,-311.28325,0.00016898,2]
[425291666,1781655041000,-500.0,0.00016898,2]
[425291660,1781655041000,-311.28325,0.00016898,2]
[425291667,1781655041000,-225.69809414,0.00016898,2]
[425291683,1781655041000,-856.72,0.00017071,2]
[425291671,1781655041000,-500.0,0.00016997,2]
[425291673,1781655041000,-565.00863659,0.00016997,2]
[425291669,1781655041000,-500.0,0.00016898,2]
[425291672,1781655041000,-500.0,0.00016997,2]
[425291670,1781655041000,-500.0,0.00016898,2]
[425291676,1781655041000,-500.0,0.00016997,2]
[425291677,1781655041000,-159.76199351,0.00017005,2]
[425291679,1781655041000,-215.85476243,0.00017025,2]
[425291687,1781655041000,-1556.16,0.00017071,2]
[425291678,1781655041000,-166.05851141,0.00017025,2]
[425291688,1781655041000,-791.7,0.00017071,2]
[425291684,1781655041000,-662.07,0.00017071,2]
[425291654,1781655041000,-500.0,0.00016898,2]
[425291680,1781655041000,-246.69115706,0.00017025,2]
[425291668,1781655041000,-500.0,0.00016898,2]
[425291653,1781655041000,-500.0,0.00016898,2]
[425291649,1781655041000,-403.05879362,0.00016898,2]
[425291652,1781655041000,-500.0,0.00016898,2]
[425291622,1781655041000,-530.09434306,0.00016898,2]
[425291681,1781655041000,-8067.48249901,0.00017053,2]
[425291625,1781655041000,-9468.19,0.00016898,2]
[425291632,1781655041000,-290.86523516,0.00016898,2]
[425291626,1781655041000,-500.0,0.00016898,2]
[425291627,1781655041000,-1669.04,0.00016898,2]
[425291634,1781655041000,-500.0,0.00016898,2]
[425291633,1781655041000,-500.0,0.00016898,2]
[425291631,1781655041000,-500.0,0.00016898,2]
[425291629,1781655041000,-500.0,0.00016898,2]
[425291624,1781655041000,-500.0,0.00016898,2]
[425291628,1781655041000,-506.51239559,0.00016898,2]
[425291635,1781655041000,-500.0,0.00016898,2]
[425291630,1781655041000,-500.0,0.00016898,2]
[425291637,1781655041000,-500.0,0.00016898,2]
[425291647,1781655041000,-558.69322891,0.00016898,2]
[425291648,1781655041000,-500.0,0.00016898,2]
[425291636,1781655041000,-500.0,0.00016898,2]
[425291642,1781655041000,-500.0,0.00016898,2]
[425291638,1781655041000,-500.0,0.00016898,2]
[425291639,1781655041000,-500.0,0.00016898,2]
[425291646,1781655041000,-500.0,0.00016898,2]
[425291645,1781655041000,-500.0,0.00016898,2]
[425291641,1781655041000,-500.0,0.00016898,2]
[425291644,1781655041000,-500.0,0.00016898,2]
[425291640,1781655041000,-559.02,0.00016898,2]
[425291643,1781655041000,-500.0,0.00016898,2]
[425291650,1781655041000,-151.0,0.00016898,2]
[425291651,1781655041000,-500.0,0.00016898,2]
[425291655,1781655041000,-500.0,0.00016898,2]
[425291623,1781655041000,-500.0,0.00016898,2]
[425291682,1781655041000,-500.0,0.00017071,2]
[425291685,1781655041000,-500.0,0.00017071,2]
[425291720,1781655041000,-500.0,0.00017072,2]
[425291722,1781655041000,-500.0,0.00017072,2]
[425291723,1781655041000,-663.49,0.00017072,2]
[425291724,1781655041000,-500.0,0.00017072,2]
[425291726,1781655041000,-500.0,0.00017072,2]
[425291727,1781655041000,-647.13,0.00017072,2]
[425291729,1781655041000,-1138.2,0.00017072,2]
[425291728,1781655041000,-506.07374852,0.00017072,2]
[425291732,1781655041000,-1637.15,0.00017072,2]
[425291730,1781655041000,-151.0,0.00017072,2]
[425291739,1781655041000,-500.0,0.00017072,2]
[425291733,1781655041000,-500.0,0.00017072,2]
[425291731,1781655041000,-500.0,0.00017072,2]
[425291737,1781655041000,-500.0,0.00017072,2]
[425291736,1781655041000,-311.28325,0.00017072,2]
[425291735,1781655041000,-311.28325,0.00017072,2]
[425291738,1781655041000,-311.28325,0.00017072,2]
[425291734,1781655041000,-311.28325,0.00017072,2]
[425291740,1781655041000,-500.0,0.00017072,2]
[425291742,1781655041000,-500.0,0.00017072,2]
[425291741,1781655041000,-500.0,0.00017072,2]
[425291744,1781655041000,-500.0,0.00017073,2]
[425291748,1781655041000,-500.0,0.00017172,2]
[425291745,1781655041000,-500.0,0.00017172,2]
[425291743,1781655041000,-500.0,0.00017072,2]
[425291746,1781655041000,-1000.0,0.00017172,2]
[425291747,1781655041000,-780.72,0.00017172,2]
[425291750,1781655041000,-500.0,0.00017172,2]
[425291686,1781655041000,-500.0,0.00017071,2]
[425291725,1781655041000,-514.07319155,0.00017072,2]
[425291721,1781655041000,-500.0,0.00017072,2]
[425291749,1781655041000,-517.003679,0.00017172,2]
[425291719,1781655041000,-500.0,0.00017072,2]
[425291690,1781655041000,-500.0,0.00017071,2]
[425291700,1781655041000,-1898.03,0.00017072,2]
[425291701,1781655041000,-500.0,0.00017072,2]
[425291693,1781655041000,-591.11,0.00017071,2]
[425291695,1781655041000,-500.0,0.00017071,2]
[425291692,1781655041000,-500.0,0.00017071,2]
[425291694,1781655041000,-964.92,0.00017071,2]
[425291689,1781655041000,-569.82043892,0.00017071,2]
[425291718,1781655041000,-500.0,0.00017072,2]
[425291696,1781655041000,-500.0,0.00017072,2]
[425291698,1781655041000,-610.84,0.00017072,2]
[425291699,1781655041000,-500.0,0.00017072,2]
[425291697,1781655041000,-500.0,0.00017072,2]
[425291703,1781655041000,-731.28,0.00017072,2]
[425291691,1781655041000,-500.0,0.00017071,2]
[425291704,1781655041000,-500.0,0.00017072,2]
[425291714,1781655041000,-557.92884089,0.00017072,2]
[425291717,1781655041000,-500.0,0.00017072,2]
[425291712,1781655041000,-500.0,0.00017072,2]
[425291710,1781655041000,-502.21022255,0.00017072,2]
[425291709,1781655041000,-646.02,0.00017072,2]
[425291707,1781655041000,-500.0,0.00017072,2]
[425291716,1781655041000,-500.0,0.00017072,2]
[425291711,1781655041000,-1025.92,0.00017072,2]
[425291705,1781655041000,-500.0,0.00017072,2]
[425291706,1781655041000,-500.0,0.00017072,2]
[425291702,1781655041000,-507.54411846,0.00017072,2]
[425291715,1781655041000,-513.7222768,0.00017072,2]
[425291713,1781655041000,-507.37600273,0.00017072,2]
[425291708,1781655041000,-1373.06,0.00017072,2]
[425291794,1781655042000,-500.0,0.00017172,2]
[425291792,1781655042000,-500.0,0.00017172,2]
[425291790,1781655042000,-500.0,0.00017172,2]
[425291793,1781655042000,-500.0,0.00017172,2]
[425291795,1781655042000,-500.0,0.00017172,2]
[425291786,1781655042000,-500.0,0.00017172,2]
[425291789,1781655042000,-500.0,0.00017172,2]
[425291783,1781655042000,-500.0,0.00017172,2]
[425291784,1781655042000,-500.0,0.00017172,2]
[425291788,1781655042000,-500.0,0.00017172,2]
[425291787,1781655042000,-587.76992217,0.00017172,2]
[425291791,1781655042000,-500.0,0.00017172,2]
[425291800,1781655042000,-500.0,0.00017172,2]
[425291807,1781655042000,-311.28325,0.00017176,2]
[425291799,1781655042000,-500.0,0.00017172,2]
[425291801,1781655042000,-500.0,0.00017172,2]
[425291797,1781655042000,-500.0,0.00017172,2]
[425291796,1781655042000,-1516.76,0.00017172,2]
[425291802,1781655042000,-500.0,0.00017172,2]
[425291813,1781655042000,-159.76199351,0.00017246,2]
[425291810,1781655042000,-4832.544886,0.00017176,2]
[425291804,1781655042000,-151.0,0.00017176,2]
[425291815,1781655042000,-200.83488,0.00017253,2]
[425291809,1781655042000,-311.283242,0.00017176,2]
[425291814,1781655042000,-151.0,0.00017253,2]
[425291803,1781655042000,-151.0,0.00017176,2]
[425291805,1781655042000,-311.28325,0.00017176,2]
[425291785,1781655042000,-500.0,0.00017172,2]
[425291798,1781655042000,-500.0,0.00017172,2]
[425291782,1781655042000,-500.0,0.00017172,2]
[425291765,1781655042000,-500.0,0.00017172,2]
[425291780,1781655042000,-500.0,0.00017172,2]
[425291754,1781655042000,-500.0,0.00017172,2]
[425291753,1781655042000,-500.0,0.00017172,2]
[425291752,1781655042000,-500.0,0.00017172,2]
[425291751,1781655042000,-1691.52,0.00017172,2]
[425291755,1781655042000,-500.0,0.00017172,2]
[425291758,1781655042000,-500.0,0.00017172,2]
[425291757,1781655042000,-500.0,0.00017172,2]
[425291759,1781655042000,-500.0,0.00017172,2]
[425291760,1781655042000,-500.0,0.00017172,2]